bitfinex-derivatives/quotes_SOLF0:USTF0_20240912
["timestamp","ask_amount","ask_price","bid_price","bid_amount"]
[1726166194880,1.3822,135.72,135.67,11.33]
[1726166195079,12.7122,135.72,135.67,11.33]
[1726166195685,3.3163,135.69,135.67,11.33]
[1726166198987,3.3163,135.69,135.67,14.6467]
[1726166201983,11.33,135.73,135.68,11.33]
[1726166202387,3.3158,135.71,135.68,11.33]
[1726166203193,3.3158,135.71,135.64,6.40916496]
[1726166203384,3.3158,135.71,135.68,11.33]
[1726166203788,6.41639124,135.76,135.64,6.40916496]
[1726166203789,3.316,135.7,135.67,11.33]
[1726166204182,3.316,135.7,135.67,14.6465]
[1726166204890,3.3158,135.71,135.67,14.6465]
[1726166205794,3.3158,135.71,135.68,3.3164]
[1726166205995,3.3158,135.71,135.68,11.33]
[1726166208881,3.3158,135.71,135.68,14.6464]
[1726166209097,3.3158,135.71,135.68,11.33]
[1726166209294,3.316,135.7,135.64,6.40916496]
[1726166209495,3.316,135.7,135.67,14.6465]
[1726166211488,11.33,135.72,135.67,3.3165]
[1726166211690,6.41639124,135.76,135.67,14.6465]
[1726166211887,11.33,135.71,135.67,14.6465]
[1726166212196,3.3161,135.7,135.67,14.6465]
[1726166212994,3.3163,135.69,135.66,11.33]
[1726166213194,11.33,135.71,135.66,11.33]
[1726166213383,11.33,135.71,135.67,3.3166]
[1726166213384,3.3161,135.7,135.67,3.3166]
[1726166214000,3.3162,135.69,135.66,14.6468]
[1726166215799,3.3164,135.68,135.66,14.6468]
[1726166216303,3.3163,135.69,135.66,14.6468]
[1726166216986,11.33,135.71,135.66,11.33]
[1726166217592,3.316,135.7,135.67,3.3166]
[1726166220100,3.3162,135.69,135.67,3.3166]
[1726166220700,6.41639124,135.76,135.66,11.33]
[1726166220900,11.33,135.7,135.66,11.33]
[1726166221197,3.3163,135.69,135.66,14.6467]
[1726166221705,3.3163,135.69,135.66,11.33]
[1726166221897,3.316,135.7,135.67,3.3165]
[1726166222112,11.33,135.71,135.66,11.33]
[1726166223296,3.3161,135.7,135.67,3.3165]
[1726166227299,3.3161,135.7,135.68,14.6464]
[1726166228805,3.3161,135.7,135.68,11.33]
[1726166235010,3.3161,135.7,135.68,14.6464]
[1726166236225,3.3161,135.7,135.68,11.33]
[1726166237617,3.3162,135.69,135.68,11.33]
[1726166237818,6.41639124,135.76,135.66,14.6467]
[1726166238010,11.33,135.71,135.66,14.6467]
[1726166238311,3.3163,135.69,135.66,14.6467]
[1726166240312,3.3166,135.68,135.66,11.33]
[1726166240919,11.33,135.71,135.66,11.33]
[1726166241116,11.33,135.7,135.64,2.7293]
[1726166241318,28.54639124,135.76,135.66,11.33]
[1726166241524,3.3166,135.68,135.66,11.33]
[1726166242212,14.6466,135.68,135.64,17.3765]
[1726166242521,3.3167,135.67,135.64,17.3765]
[1726166243318,3.3171,135.65,135.64,1.3593]
[1726166243524,3.3171,135.65,135.62,11.33]
[1726166243525,14.6471,135.65,135.62,11.33]
[1726166244015,3.3174,135.64,135.62,11.33]
[1726166244205,11.33,135.65,135.62,11.33]
[1726166245908,3.3174,135.64,135.62,11.33]
[1726166246521,3.3172,135.65,135.62,14.6479]
[1726166246722,3.3172,135.65,135.63,11.33]
[1726166247019,11.33,135.69,135.64,11.33]
[1726166247226,11.33,135.67,135.63,14.6475]
[1726166247720,28.54639124,135.76,135.62,11.33]
[1726166247721,11.33,135.66,135.62,11.33]
[1726166248328,3.3172,135.65,135.62,11.33]
[1726166249216,3.3174,135.64,135.62,11.33]
[1726166251524,3.3176,135.63,135.6,21.15108689]
[1726166252528,11.33,135.63,135.6,1.4165]
[1726166252933,3.3181,135.61,135.6,1.4165]
[1726166253133,11.33,135.62,135.57,3.319]
[1726166253320,11.33,135.62,135.57,14.649]
[1726166254128,3.3182,135.61,135.57,14.649]
[1726166254319,3.3182,135.61,135.56,2.8008]
[1726166254320,1.3654,135.67,135.56,2.8008]
[1726166254520,3.3187,135.59,135.56,2.8008]
[1726166254925,11.33,135.6,135.56,2.8008]
[1726166255130,3.3189,135.58,135.56,2.8008]
[1726166255615,1.3654,135.67,135.56,17.4501]
[1726166255926,11.33,135.6,135.56,17.4501]
[1726166256330,3.3187,135.59,135.56,17.4501]
[1726166257932,14.6484,135.6,135.56,17.4501]
[1726166258739,3.3188,135.59,135.56,1.3899]
[1726166258926,11.33,135.6,135.56,1.3899]
[1726166259140,3.3187,135.59,135.55,181.18946804]
[1726166259325,11.33,135.6,135.55,181.18946804]
[1726166259727,3.3187,135.59,135.55,181.18946804]
[1726166260638,3.3185,135.6,135.57,11.33]
[1726166261019,11.33,135.61,135.57,11.33]
[1726166261235,3.3186,135.6,135.57,11.33]
[1726166261624,3.3186,135.6,135.56,14.6492]
[1726166262332,11.33,135.61,135.56,11.33]
[1726166262835,3.3185,135.6,135.57,3.319]
[1726166263633,3.3186,135.59,135.57,3.319]
[1726166263837,3.3186,135.59,135.56,14.6493]
[1726166268738,14.6484,135.6,135.57,3.319]
[1726166271729,3.3184,135.6,135.57,3.319]
[1726166271929,11.33,135.62,135.57,11.33]
[1726166272339,11.33,135.62,135.59,3.3186]
[1726166272535,14.6478,135.63,135.58,11.33]
[1726166273127,14.6478,135.63,135.6,3.3182]
[1726166273334,3.3175,135.64,135.6,11.33]
[1726166273729,1.3654,135.67,135.61,11.33]
[1726166273935,3.3173,135.65,135.62,3.3177]
[1726166276542,3.3173,135.65,135.61,11.33]
[1726166276739,3.3173,135.65,135.63,3.3176]
[1726166283848,3.3173,135.65,135.62,3.3178]
[1726166284950,3.3173,135.65,135.63,3.3176]
[1726166285449,3.317,135.66,135.62,11.33]
[1726166285742,3.317,135.66,135.64,11.33]
[1726166285947,11.33,135.69,135.65,3.3171]
[1726166286138,11.33,135.69,135.65,14.6471]
[1726166286844,3.3165,135.68,135.65,14.6471]
[1726166288942,3.3165,135.68,135.58,4.2156]
[1726166288943,11.33,135.71,135.66,11.33]
[1726166289649,3.3161,135.7,135.67,3.3166]
[1726166289946,11.33,135.71,135.66,11.33]
[1726166290345,3.3163,135.69,135.66,14.6468]
[1726166290748,3.3163,135.69,135.66,11.33]
[1726166290965,11.33,135.71,135.66,11.33]
[1726166291654,3.3163,135.69,135.66,11.33]
[1726166292649,3.3163,135.69,135.66,14.6468]
[1726166296053,3.3168,135.67,135.58,4.2156]
[1726166296246,3.3168,135.67,135.63,11.33]
[1726166296847,3.3168,135.67,135.64,14.6472]
[1726166297054,11.33,135.69,135.64,14.6472]
[1726166297055,3.3165,135.68,135.64,11.33]
[1726166297257,3.3165,135.68,135.65,3.3171]
[1726166297449,11.33,135.69,135.64,11.33]
[1726166297651,3.3166,135.68,135.64,11.33]
[1726166298048,2.7348,135.72,135.67,11.33]
[1726166298355,14.0648,135.72,135.68,11.33]
[1726166298858,3.3157,135.71,135.67,11.33]
[1726166299058,14.0648,135.72,135.67,11.33]
[1726166299361,16.0206,135.72,135.68,14.6463]
[1726166299548,12.705,135.72,135.68,14.6463]
[1726166300754,3.3157,135.71,135.68,14.6463]
[1726166300958,3.3157,135.71,135.68,11.33]
[1726166302849,3.3157,135.71,135.67,3.3166]
[1726166303051,3.3157,135.71,135.67,14.6466]
[1726166305962,11.33,135.7,135.66,14.6469]
[1726166306167,1.375,135.72,135.66,14.6469]
[1726166306356,14.6461,135.7,135.66,14.6469]
[1726166306555,11.33,135.7,135.66,14.6469]
[1726166307753,3.3162,135.69,135.66,14.6469]
[1726166308862,11.33,135.7,135.65,1.2953]
[1726166309058,11.33,135.69,135.65,1.2953]
[1726166309259,3.3168,135.67,135.64,11.33]
[1726166309462,3.3168,135.67,135.63,3.3174]
[1726166309657,3.3168,135.67,135.64,11.33]
[1726166310469,3.3168,135.67,135.64,14.6474]
[1726166310665,11.33,135.69,135.64,14.6474]
[1726166310666,3.3165,135.68,135.64,11.33]
[1726166310871,11.33,135.69,135.64,11.33]
[1726166311273,3.3168,135.67,135.64,14.6473]
[1726166311676,11.33,135.69,135.64,11.33]
[1726166311882,3.317,135.66,135.64,11.33]
[1726166312078,11.33,135.67,135.62,11.33]
[1726166312383,3.3175,135.64,135.59,1.3659]
[1726166312687,3.73967024,135.68,135.6,14.6483]
[1726166312885,11.33,135.63,135.59,1.3659]
[1726166313084,11.33,135.62,135.59,1.3659]
[1726166313286,5.07055641,135.66,135.56,3.3192]
[1726166313496,3.3184,135.6,135.57,11.33]
[1726166314191,3.3184,135.6,135.57,14.6491]
[1726166319591,1.3637,135.66,135.57,11.33]
[1726166319896,11.33,135.64,135.59,11.33]
[1726166320095,5.06951989,135.66,135.59,11.33]
[1726166320096,3.3181,135.62,135.59,14.6486]
[1726166321895,3.3181,135.62,135.59,3.3186]
[1726166323493,3.3181,135.62,135.6,3.3184]
[1726166323798,3.3177,135.63,135.6,3.3184]
[1726166325394,3.3177,135.63,135.61,3.3181]
[1726166325601,11.33,135.65,135.61,11.33]
[1726166325990,14.6473,135.65,135.62,3.3177]
[1726166326697,3.3174,135.64,135.61,11.33]
[1726166326900,3.3174,135.64,135.6,11.33]
[1726166327101,11.33,135.64,135.6,11.33]
[1726166327299,1.4111,135.67,135.6,3.3182]
[1726166327499,11.33,135.61,135.59,2.6596]
[1726166327693,11.33,135.61,135.59,1.3211]
[1726166327892,11.33,135.61,135.58,3.3188]
[1726166328095,1.3482,135.66,135.55,11.33]
[1726166328096,11.33,135.6,135.55,11.33]
[1726166328298,1.3482,135.66,135.56,3.3192]
[1726166328597,11.33,135.59,135.54,11.33]
[1726166328803,14.6486,135.59,135.57,3.3191]
[1726166329001,11.33,135.58,135.53,179.23915034]
[1726166329397,3.3192,135.57,135.54,3.3197]
[1726166329700,3.3192,135.57,135.53,179.23915034]
[1726166329701,11.33,135.57,135.53,179.23915034]
[1726166330302,3.3192,135.57,135.54,3.3198]
[1726166330502,14.6492,135.57,135.54,3.3198]
[1726166332602,3.3192,135.57,135.54,3.3198]
[1726166332804,11.33,135.56,135.54,3.3198]
[1726166333200,3.3192,135.57,135.54,3.3198]
[1726166333407,14.6492,135.57,135.54,3.3198]
[1726166334006,14.6496,135.56,135.53,1.3211]
[1726166334305,11.33,135.54,135.53,1.3211]
[1726166335507,3.3197,135.55,135.53,1.3211]
[1726166337214,14.6495,135.56,135.53,1.3211]
[1726166337899,14.6495,135.56,135.53,4.6412]
[1726166338106,3.3192,135.57,135.53,4.6412]
[1726166338303,14.6492,135.57,135.53,1.3211]
[1726166339305,3.319,135.58,135.53,12.6511]
[1726166339612,3.319,135.58,135.54,11.33]
[1726166339807,2.6352,135.61,135.56,11.33]
[1726166339808,1.2945,135.61,135.56,11.33]
[1726166340111,11.33,135.61,135.57,11.33]
[1726166340304,1.1539,135.65,135.58,11.33]
[1726166340497,11.33,135.63,135.58,11.33]
[1726166340697,1.3523,135.66,135.58,12.6873]
[1726166341009,11.33,135.64,135.59,11.33]
[1726166341202,3.3178,135.63,135.6,3.3182]
[1726166342008,3.318,135.62,135.59,14.6485]
[1726166342200,3.318,135.62,135.59,3.3185]
[1726166343105,14.6477,135.63,135.59,3.3185]
[1726166344312,3.3177,135.63,135.59,14.6485]
[1726166344511,14.6477,135.63,135.59,14.6485]
[1726166345811,14.6477,135.63,135.6,3.3184]
[1726166346012,3.3179,135.62,135.59,11.33]
[1726166346213,3.3179,135.62,135.59,14.6484]
[1726166347511,1.3819,135.67,135.6,11.33]
[1726166347712,11.33,135.65,135.6,11.33]
[1726166347914,3.3178,135.63,135.6,14.6482]
[1726166348210,11.33,135.65,135.6,11.33]
[1726166348621,3.3177,135.63,135.6,14.6483]
[1726166350527,3.3177,135.63,135.61,3.3181]
[1726166350719,3.3177,135.63,135.6,11.33]
[1726166351024,14.6477,135.63,135.6,3.3182]
[1726166351224,11.33,135.62,135.58,14.0962]
[1726166351725,3.3183,135.61,135.58,17.415]
[1726166352921,3.3184,135.6,135.57,3.319]
[1726166353129,3.3184,135.6,135.56,11.33]
[1726166353725,3.3184,135.6,135.57,3.3189]
[1726166353916,11.33,135.59,135.54,2.7725]
[1726166354227,11.33,135.58,135.54,2.7725]
[1726166354527,14.6492,135.57,135.54,2.7725]
[1726166355120,14.6492,135.57,135.54,1.3583]
[1726166357731,2.7916,135.61,135.54,1.3583]
[1726166357929,11.33,135.56,135.54,1.3583]
[1726166358136,14.6495,135.56,135.52,3.3203]
[1726166358937,14.6496,135.55,135.51,16.0107]
[1726166359130,3.3196,135.55,135.51,4.6807]
[1726166359329,14.6496,135.55,135.51,4.6807]
[1726166360037,11.33,135.56,135.51,12.6902]
[1726166360525,14.6494,135.56,135.52,3.3202]
[1726166362246,11.33,135.55,135.51,16.0107]
[1726166362426,11.33,135.55,135.51,12.6902]
[1726166362831,3.32,135.54,135.51,16.0107]
[1726166364041,14.6497,135.55,135.51,16.0107]
[1726166364237,14.6497,135.55,135.52,3.3203]
[1726166364829,3.9454,135.61,135.53,14.6501]
[1726166365030,11.33,135.58,135.53,14.6501]
[1726166365440,3.3193,135.57,135.53,14.6501]
[1726166365849,3.3193,135.57,135.54,3.3198]
[1726166366537,3.3194,135.56,135.54,3.3198]
[1726166367444,3.3192,135.57,135.54,3.3198]
[1726166367942,11.33,135.6,135.54,11.33]
[1726166368239,3.3189,135.58,135.54,11.33]
[1726166368632,11.33,135.6,135.56,11.33]
[1726166369445,3.3188,135.59,135.56,14.6493]
[1726166370140,14.6488,135.59,135.56,14.6493]
[1726166370344,3.3189,135.58,135.55,14.6495]
[1726166370554,11.33,135.59,135.54,11.33]
[1726166371248,3.319,135.58,135.54,11.33]
[1726166371648,11.33,135.59,135.54,11.33]
[1726166372553,3.319,135.58,135.55,3.3196]
[1726166373049,3.319,135.58,135.55,14.6496]
[1726166373562,3.319,135.58,135.56,3.3193]
[1726166374549,3.319,135.58,135.55,14.6495]
[1726166374852,3.319,135.58,135.55,3.3195]
[1726166377547,3.3192,135.57,135.54,14.6497]
[1726166378047,11.33,135.57,135.53,14.65]
[1726166378651,14.6495,135.56,135.53,3.32]
[1726166378958,3.3195,135.56,135.54,11.33]
[1726166379154,3.3195,135.56,135.54,14.6498]
[1726166381959,3.3192,135.57,135.54,14.6498]
[1726166383550,3.3192,135.57,135.54,3.3198]
[1726166383750,3.3194,135.56,135.54,3.3198]
[1726166390166,3.3192,135.57,135.54,3.3198]
[1726166395465,3.3194,135.56,135.54,3.3198]
[1726166395765,3.3193,135.57,135.54,3.3198]
[1726166396758,3.3194,135.56,135.54,3.3198]
[1726166396960,11.33,135.58,135.54,14.6498]
[1726166397768,3.3193,135.57,135.54,14.6498]
[1726166398064,3.3191,135.58,135.55,3.3195]
[1726166398261,3.3191,135.58,135.55,14.6495]
[1726166398462,3.3191,135.58,135.56,3.3193]
[1726166399058,3.3191,135.58,135.55,14.6495]
[1726166399967,11.33,135.6,135.55,14.6495]
[1726166400175,11.33,135.58,135.53,11.33]
[1726166400664,14.649,135.58,135.53,11.33]
[1726166401067,11.33,135.58,135.53,11.33]
[1726166401261,3.3191,135.57,135.54,3.3197]
[1726166401972,3.3191,135.57,135.55,11.33]
[1726166402474,3.319,135.58,135.55,14.6494]
[1726166402674,11.33,135.6,135.55,11.33]
[1726166402869,11.33,135.6,135.56,11.33]
[1726166403178,3.319,135.58,135.56,11.33]
[1726166403376,2.7916,135.61,135.51,1.4245]
[1726166403377,11.33,135.59,135.54,11.33]
[1726166404072,11.33,135.6,135.54,11.33]
[1726166404465,3.319,135.58,135.56,3.3193]
[1726166404665,11.33,135.6,135.56,11.33]
[1726166404871,3.3186,135.6,135.57,11.33]
[1726166405869,3.3186,135.6,135.57,14.6489]
[1726166407578,2.7849,135.65,135.59,11.33]
[1726166407579,12.7051,135.65,135.59,11.33]
[1726166407777,12.7051,135.65,135.53,4.95007929]
[1726166407778,12.7051,135.65,135.61,11.33]
[1726166407979,4.6924,135.65,135.62,14.6479]
[1726166408284,1.3751,135.65,135.62,11.33]
[1726166408578,12.7051,135.65,135.59,1.363]
[1726166408879,11.33,135.63,135.59,1.363]
[1726166409082,11.33,135.61,135.57,3.319]
[1726166409381,11.33,135.58,135.53,12.6548]
[1726166409575,3.3192,135.57,135.54,3.3197]
[1726166409777,3.3192,135.57,135.53,12.6548]
[1726166409778,11.33,135.59,135.55,11.33]
[1726166410782,14.6488,135.59,135.56,3.3193]
[1726166411976,14.6484,135.6,135.57,3.3191]
[1726166412178,14.6484,135.6,135.56,11.33]
[1726166412179,3.3184,135.6,135.56,11.33]
[1726166412382,3.3184,135.6,135.58,11.33]
[1726166412589,14.6483,135.61,135.58,14.6488]
[1726166413980,11.33,135.61,135.58,11.33]
[1726166415082,3.3185,135.6,135.58,11.33]
[1726166416687,3.3185,135.6,135.57,3.3191]
[1726166418991,11.33,135.61,135.57,3.3191]
[1726166419190,11.33,135.61,135.56,11.33]
[1726166419191,3.3186,135.59,135.56,14.6492]
[1726166420197,3.319,135.58,135.55,14.6495]
[1726166421484,11.33,135.56,135.53,1.3248]
[1726166421884,11.33,135.56,135.51,11.33]
[1726166422490,3.3198,135.55,135.52,3.3202]
[1726166422884,11.33,135.57,135.54,3.3197]
[1726166424778,14.6493,135.57,135.54,3.3197]
[1726166425691,11.33,135.59,135.53,11.33]
[1726166425889,11.33,135.59,135.55,11.33]
[1726166426289,1.4096,135.6,135.55,11.33]
[1726166426596,12.7396,135.6,135.56,11.33]
[1726166426987,3.3187,135.59,135.56,14.6492]
[1726166427299,1.3865,135.61,135.56,11.33]
[1726166427504,11.33,135.62,135.58,11.33]
[1726166427699,1.1534,135.64,135.57,3.3189]
[1726166427996,11.33,135.6,135.55,11.33]
[1726166428685,2.4458,135.64,135.55,11.33]
[1726166428888,11.33,135.6,135.55,11.33]
[1726166429089,14.6485,135.6,135.56,3.3192]
[1726166429303,14.6485,135.6,135.55,11.33]
[1726166429489,2.4458,135.64,135.55,11.33]
[1726166429690,3.3187,135.59,135.56,3.3193]
[1726166429894,11.33,135.59,135.55,11.33]
[1726166430294,3.3189,135.58,135.55,14.6494]
[1726166430593,11.33,135.59,135.55,14.6494]
[1726166430901,14.6487,135.59,135.55,14.6494]
[1726166431203,11.33,135.59,135.55,14.6494]
[1726166431392,11.33,135.59,135.5,4.0174]
[1726166431393,11.33,135.58,135.54,3.3198]
[1726166431584,3.319,135.58,135.55,11.33]
[1726166432996,3.3189,135.58,135.55,11.33]
[1726166434596,3.3191,135.57,135.54,3.3197]
[1726166436001,14.6491,135.57,135.5,4.0174]
[1726166436193,11.33,135.53,135.49,166.63447016]
[1726166436694,3.3203,135.52,135.49,169.95537016]
[1726166438004,3.3203,135.52,135.49,166.63447016]
[1726166438201,3.3203,135.52,135.48,3.3212]
[1726166438393,14.6506,135.51,135.48,3.3212]
[1726166438805,11.33,135.5,135.45,2.6903]
[1726166439003,11.33,135.51,135.45,14.0203]
[1726166439605,3.321,135.5,135.47,3.3216]
[1726166440704,11.33,135.51,135.45,14.0203]
[1726166440905,11.33,135.5,135.45,1.292]
[1726166441302,11.33,135.5,135.45,12.622]
[1726166441303,14.6509,135.5,135.45,12.622]
[1726166441609,11.33,135.5,135.45,12.622]
[1726166442104,11.33,135.5,135.45,1.292]
[1726166442706,11.33,135.5,135.45,4.6139]
[1726166442707,3.3214,135.48,135.45,4.6139]
[1726166445603,14.6514,135.48,135.45,4.6139]
[1726166447295,14.6514,135.48,135.45,3.3219]
[1726166447893,3.3217,135.47,135.43,14.6523]
[1726166448098,3.3217,135.47,135.43,11.33]
[1726166448294,11.33,135.48,135.43,11.33]
[1726166448512,14.6514,135.48,135.45,3.3219]
[1726166449713,11.33,135.48,135.46,3.3217]
[1726166450908,14.6513,135.48,135.45,14.652]
[1726166452206,3.3213,135.48,135.45,14.652]
[1726166454811,14.6513,135.48,135.45,14.652]
[1726166460202,11.33,135.46,135.43,3.3225]
[1726166460909,11.33,135.46,135.42,3.3226]
[1726166461215,11.33,135.45,135.42,3.3226]
[1726166461417,14.6522,135.45,135.4,12.759]
[1726166462210,14.6522,135.45,135.42,3.3227]
[1726166463216,14.6522,135.45,135.43,3.3225]
[1726166468918,14.6522,135.45,135.42,3.3227]
[1726166469812,14.6519,135.46,135.43,3.3223]
[1726166470117,11.33,135.47,135.43,11.33]
[1726166470308,3.3211,135.49,135.46,3.3217]
[1726166470508,11.33,135.5,135.45,11.33]
[1726166471021,14.651,135.5,135.47,3.3214]
[1726166471320,11.33,135.5,135.47,3.3214]
[1726166471526,3.3211,135.49,135.46,3.3217]
[1726166473021,3.3211,135.49,135.47,3.3215]
[1726166473220,14.6509,135.5,135.47,3.3215]
[1726166474215,3.3209,135.5,135.47,3.3215]
[1726166474518,14.6506,135.51,135.48,3.3213]
[1726166474917,14.6506,135.51,135.46,11.33]
[1726166474918,14.6506,135.51,135.49,3.321]
[1726166475119,11.33,135.51,135.49,3.321]
[1726166476722,11.33,135.52,135.49,3.321]
[1726166477118,14.6506,135.52,135.49,3.321]
[1726166477924,11.33,135.51,135.46,11.33]
[1726166478425,3.3211,135.49,135.47,3.3215]
[1726166479130,3.3211,135.49,135.46,3.3217]
[1726166479316,3.71261696,135.54,135.45,1.3744]
[1726166479317,11.33,135.48,135.45,1.3744]
[1726166480219,11.33,135.48,135.46,3.3218]
[1726166481126,14.6513,135.48,135.46,3.3218]
[1726166482725,3.3216,135.47,135.45,1.3744]
[1726166483327,3.3216,135.47,135.44,14.6522]
[1726166483814,14.6515,135.48,135.44,11.33]
[1726166484015,14.6515,135.48,135.45,3.322]
[1726166484418,3.3215,135.48,135.45,14.652]
[1726166484728,14.6512,135.49,135.46,3.3218]
[1726166487029,14.6514,135.48,135.45,3.322]
[1726166487523,1.3062,135.55,135.41,1.3175]
[1726166487524,3.3224,135.44,135.41,4.6405]
[1726166487733,11.33,135.45,135.41,1.3175]
[1726166488732,11.33,135.46,135.41,12.6475]
[1726166489728,11.33,135.46,135.42,11.33]
[1726166490031,11.33,135.46,135.43,3.3224]
[1726166490931,14.6518,135.46,135.43,3.3224]
[1726166491130,11.33,135.46,135.44,3.3222]
[1726166491336,11.33,135.47,135.44,14.6522]
[1726166492229,14.6517,135.47,135.44,14.6522]
[1726166493734,11.33,135.47,135.45,3.3219]
[1726166494237,14.6516,135.47,135.44,14.6522]
[1726166497536,3.3218,135.46,135.43,3.3224]
[1726166499536,3.3216,135.47,135.44,3.3221]
[1726166500037,3.3216,135.47,135.44,14.6521]
[1726166500538,3.3218,135.46,135.44,3.3221]
[1726166501238,3.3218,135.46,135.43,14.6525]
[1726166503831,3.3221,135.45,135.43,14.6525]
[1726166504036,3.3221,135.45,135.43,3.3225]
[1726166504540,3.3219,135.46,135.43,3.3225]
[1726166505143,3.3221,135.45,135.43,3.3225]
[1726166505343,11.33,135.46,135.41,15.9487]
[1726166505832,3.3225,135.44,135.41,15.9487]
[1726166507744,3.3225,135.44,135.41,15.9487]
[1726166507939,3.3225,135.44,135.42,8.28386235]
[1726166508141,3.3225,135.44,135.42,14.6527]
[1726166508438,3.3225,135.44,135.42,3.3227]
[1726166508641,3.3222,135.45,135.42,3.3227]
[1726166508848,11.33,135.47,135.43,3.3225]
[1726166509142,3.322,135.46,135.43,14.6525]
[1726166510154,3.322,135.46,135.44,3.3222]
[1726166510942,3.3217,135.47,135.44,3.3222]
[1726166511341,11.33,135.48,135.44,3.3222]
[1726166511643,3.3219,135.46,135.43,3.3224]
[1726166514145,3.3219,135.46,135.44,3.3223]
[1726166515149,14.6517,135.47,135.44,3.3223]
[1726166516641,11.33,135.49,135.45,3.322]
[1726166516840,11.33,135.49,135.43,11.33]
[1726166517237,3.3217,135.47,135.44,3.3222]
[1726166517850,3.3214,135.48,135.45,3.3219]
[1726166518853,3.3216,135.47,135.45,3.3219]
[1726166519239,3.3216,135.47,135.44,3.3222]
[1726166519947,3.3216,135.47,135.45,3.322]
[1726166522657,3.3213,135.49,135.46,14.6518]
[1726166523256,11.33,135.49,135.44,11.33]
[1726166523457,11.33,135.48,135.44,11.33]
[1726166523655,3.3217,135.47,135.44,11.33]
[1726166524257,3.3217,135.47,135.44,14.6521]
[1726166524452,3.3218,135.47,135.44,3.3221]
[1726166524860,11.33,135.48,135.41,2.6867]
[1726166524861,11.33,135.5,135.45,14.6519]
[1726166525162,1.3423,135.51,135.41,2.6867]
[1726166525163,11.33,135.48,135.41,2.6867]
[1726166525457,11.33,135.48,135.44,3.3221]
[1726166526349,3.3216,135.47,135.44,3.3221]
[1726166529255,3.3216,135.47,135.45,3.322]
[1726166529663,14.6514,135.48,135.43,11.33]
[1726166529964,14.6514,135.48,135.45,3.3219]
[1726166530354,3.3216,135.47,135.43,11.33]
[1726166530662,3.3216,135.47,135.44,3.3221]
[1726166531459,3.3218,135.46,135.43,14.6524]
[1726166532354,3.3217,135.47,135.44,3.3222]
[1726166535463,3.3217,135.47,135.45,3.322]
[1726166535764,3.3215,135.48,135.45,3.322]
[1726166536066,11.33,135.5,135.46,3.3216]
[1726166536249,3.3211,135.49,135.46,3.3216]
[1726166536656,1.3423,135.51,135.47,11.33]
[1726166537356,3.3208,135.5,135.48,3.3213]
[1726166537668,1.3423,135.51,135.48,3.3213]
[1726166538165,4.663,135.51,135.48,3.3213]
[1726166538868,3.3208,135.5,135.48,3.3213]
[1726166539169,1.3423,135.51,135.48,3.3213]